bitfinex-derivatives/quotes_SOLF0:USTF0_20250903
["timestamp","ask_amount","ask_price","bid_price","bid_amount"]
[1756893636581,7.47,209.76,209.71,9.00636727]
[1756893636778,12.8253652,209.8,209.75,1.74636727]
[1756893636984,7.87132189,209.83,209.75,1.74636727]
[1756893636985,7.47,209.79,209.75,1.74636727]
[1756893637185,5.3553652,209.81,209.72,7.26]
[1756893637186,7.47,209.81,209.72,7.26]
[1756893637385,7.47,209.78,209.71,1.74636727]
[1756893639086,7.47,209.78,209.73,1.74636727]
[1756893639288,7.47,209.79,209.73,1.74636727]
[1756893641088,7.47,209.79,209.75,1.74636727]
[1756893641492,7.47,209.79,209.77,1.74636727]
[1756893642790,7.47,209.79,209.75,9.67636727]
[1756893642988,7.49,209.81,209.67,7.93]
[1756893643196,7.49,209.77,209.67,7.93]
[1756893643490,7.49,209.77,209.7,1.74636727]
[1756893643694,7.49,209.77,209.72,1.74636727]
[1756893643893,12.8453652,209.81,209.74,1.74636727]
[1756893644096,7.49,209.81,209.74,1.74636727]
[1756893644394,7.49,209.81,209.72,1.74636727]
[1756893644395,7.49,209.79,209.72,1.74636727]
[1756893645194,7.49,209.77,209.68,7.93]
[1756893645495,7.49,209.77,209.7,1.74636727]
[1756893646788,9.23636727,209.77,209.7,1.74636727]
[1756893647198,7.49,209.74,209.59,11.4]
[1756893647396,1.74636727,209.73,209.65,1.74636727]
[1756893647996,7.49,209.74,209.67,1.74636727]
[1756893649397,7.49,209.74,209.69,1.74636727]
[1756893649588,7.49,209.74,209.7,7.93]
[1756893649789,7.49,209.77,209.69,1.74636727]
[1756893649994,7.49,209.75,209.68,1.74636727]
[1756893651596,7.49,209.75,209.71,7.93]
[1756893651993,7.49,209.76,209.7,1.74636727]
[1756893652206,1.74636727,209.75,209.67,7.93]
[1756893652394,7.49,209.71,209.63,1.74636727]
[1756893652594,7.49,209.71,209.65,1.74636727]
[1756893654794,7.49,209.71,209.63,7.93]
[1756893655002,7.49,209.71,209.64,1.74636727]
[1756893657098,1.74636727,209.7,209.64,1.74636727]
[1756893657497,1.74636727,209.68,209.63,7.93]
[1756893657802,7.49,209.67,209.6,9.67636727]
[1756893660194,7.49,209.67,209.6,7.93]
[1756893660594,1.74636727,209.66,209.6,7.93]
[1756893660798,7.49,209.71,209.63,1.74636727]
[1756893661099,9.23636727,209.71,209.63,1.74636727]
[1756893661301,7.49,209.71,209.65,1.74636727]
[1756893661804,1.74636727,209.7,209.63,9.67636727]
[1756893662105,1.74636727,209.7,209.63,7.93]
[1756893662305,1.74636727,209.7,209.63,9.67636727]
[1756893663604,7.49,209.71,209.65,1.74636727]
[1756893663808,1.74636727,209.74,209.66,7.93]
[1756893664608,1.74636727,209.74,209.66,9.67636727]
[1756893665414,1.74636727,209.72,209.66,7.93]
[1756893665613,9.23636727,209.72,209.66,7.93]
[1756893666214,9.23636727,209.72,209.63,1.74636727]
[1756893666713,7.49,209.72,209.63,9.67636727]
[1756893667013,1.74636727,209.71,209.63,9.67636727]
[1756893668813,1.74636727,209.69,209.63,7.93]
[1756893669014,1.74636727,209.67,209.61,1.74636727]
[1756893669416,1.74636727,209.67,209.59,9.67636727]
[1756893669613,1.74636727,209.65,209.59,7.93]
[1756893669816,9.23636727,209.65,209.59,7.93]
[1756893670122,7.49,209.65,209.59,7.93]
[1756893670316,9.23636727,209.65,209.59,7.93]
[1756893671014,7.49,209.65,209.59,7.93]
[1756893671215,118.98,209.77,209.54,104.35124574]
[1756893671216,7.49,209.7,209.62,7.93]
[1756893671413,1.74636727,209.69,209.63,1.74636727]
[1756893671619,5.3553652,209.74,209.65,1.74636727]
[1756893671819,1.74636727,209.73,209.66,7.33]
[1756893672915,1.74636727,209.71,209.66,7.33]
[1756893673117,1.74636727,209.71,209.65,9.07636727]
[1756893673618,1.74636727,209.72,209.65,9.07636727]
[1756893673818,7.59,209.73,209.66,1.74636727]
[1756893674219,7.59,209.73,209.65,7.33]
[1756893674417,7.59,209.73,209.66,1.74636727]
[1756893675021,7.59,209.73,209.65,7.33]
[1756893675022,1.74636727,209.72,209.65,7.33]
[1756893675221,7.59,209.69,209.58,7.33]
[1756893675416,5.3553652,209.74,209.63,1.74636727]
[1756893675621,7.59,209.73,209.63,9.07636727]
[1756893675914,1.74636727,209.7,209.63,9.07636727]
[1756893676321,1.74636727,209.71,209.63,9.07636727]
[1756893676723,1.74636727,209.69,209.63,9.07636727]
[1756893677229,1.74636727,209.69,209.63,7.33]
[1756893677519,9.33636727,209.67,209.58,1.74636727]
[1756893677719,9.33636727,209.67,209.59,7.33]
[1756893678525,9.33636727,209.65,209.59,7.33]
[1756893679117,9.33636727,209.65,209.56,1.74636727]
[1756893679324,7.59,209.65,209.57,7.33]
[1756893679521,9.33636727,209.65,209.58,1.74636727]
[1756893680229,14.34,209.73,209.54,104.35124574]
[1756893680230,1.74636727,209.67,209.6,1.74636727]
[1756893680428,9.33636727,209.67,209.6,1.74636727]
[1756893680728,7.59,209.67,209.59,7.33]
[1756893680928,1.74636727,209.65,209.59,7.33]
[1756893682226,7.59,209.67,209.59,7.33]
[1756893682422,1.74636727,209.65,209.59,7.33]
[1756893682627,7.59,209.62,209.56,1.74636727]
[1756893683225,7.59,209.62,209.55,9.07636727]
[1756893683425,7.59,209.62,209.55,7.33]
[1756893683630,2.73278464,209.66,209.55,7.33]
[1756893683828,10.32278464,209.66,209.55,7.33]
[1756893684028,10.32278464,209.66,209.56,7.33]
[1756893684333,7.59,209.66,209.56,7.33]
[1756893684529,7.59,209.66,209.58,2.73278464]
[1756893684732,7.59,209.7,209.59,7.33]
[1756893686127,7.59,209.7,209.62,7.33]
[1756893686327,10.32278464,209.74,209.62,7.33]
[1756893687824,7.59,209.74,209.64,7.33]
[1756893696443,12.9453652,209.74,209.6,2.73278464]
[1756893696644,10.32278464,209.72,209.61,7.33]
[1756893698345,7.59,209.72,209.61,7.33]
[1756893699753,2.73278464,209.71,209.61,7.33]
[1756893700051,7.59,209.7,209.57,7.33]
[1756893700249,12.9453652,209.7,209.57,7.33]
[1756893700450,7.59,209.68,209.57,7.33]
[1756893701353,7.59,209.68,209.59,2.73278464]
[1756893701650,7.59,209.68,209.6,7.33]
[1756893704542,10.32278464,209.68,209.55,7.96]
[1756893705649,10.32278464,209.68,209.57,2.73278464]
[1756893705850,10.32278464,209.68,209.58,7.96]
[1756893706448,13.0953652,209.72,209.63,2.73278464]
[1756893706652,7.74,209.72,209.64,7.96]
[1756893721961,7.74,209.75,209.67,7.96]
[1756893722760,7.74,209.8,209.69,2.73278464]
[1756893723065,7.74,209.8,209.7,7.96]
[1756893724961,7.74,209.8,209.69,2.73278464]
[1756893725365,7.74,209.8,209.7,7.96]
[1756893727167,321.42989531,209.84,209.71,2.73278464]
[1756893727362,7.74,209.84,209.75,2.73278464]
[1756893727561,7.74,209.84,209.72,10.69278464]
[1756893727767,2.73278464,209.83,209.72,10.69278464]
[1756893728070,7.74,209.82,209.72,7.96]
[1756893728970,7.74,209.82,209.68,10.69278464]
[1756893729173,7.74,209.8,209.68,7.96]
[1756893729371,7.74,209.77,209.68,7.96]
[1756893729572,7.74,209.77,209.64,10.69278464]
[1756893729871,2.73278464,209.78,209.64,10.69278464]
[1756893730972,7.74,209.77,209.64,7.96]
[1756893731199,7.74,209.77,209.66,2.73278464]
[1756893731469,7.74,209.82,209.73,7.9]
[1756893732170,7.86,209.79,209.68,7.9]
[1756893732374,7.86,209.79,209.64,10.63278464]
[1756893732674,7.86,209.76,209.64,7.9]
[1756893732875,21.36,209.76,209.64,7.9]
[1756893733064,21.36,209.76,209.66,7.9]
[1756893733269,7.86,209.76,209.66,7.9]
[1756893734966,7.86,209.8,209.68,2.73278464]
[1756893735170,7.86,209.8,209.72,7.9]
[1756893735683,7.86,209.8,209.74,2.73278464]
[1756893736177,38.32,209.83,209.75,7.9]
[1756893737269,0.82980626,209.87,209.78,7.9]
[1756893737469,7.86,209.89,209.75,7.9]
[1756893743373,13.2153652,209.89,209.75,7.9]
[1756893745177,7.86,209.89,209.75,7.9]
[1756893745385,7.86,209.86,209.75,7.9]
[1756893745572,13.2153652,209.86,209.75,7.9]
[1756893746079,7.86,209.84,209.75,7.9]
[1756893749188,44.0953652,209.87,209.75,7.9]
[1756893749189,13.2153652,209.87,209.75,7.9]
[1756893749489,7.86,209.87,209.75,7.9]
[1756893751681,13.2153652,209.87,209.75,7.9]
[1756893751987,13.2153652,209.87,209.67,320.46]
[1756893751988,7.86,209.84,209.68,7.9]
[1756893752184,5.3553652,209.83,209.68,7.9]
[1756893752390,7.86,209.82,209.68,7.9]
[1756893752583,13.2153652,209.82,209.68,7.9]
[1756893752787,7.86,209.77,209.64,7.9]
[1756893754090,13.2153652,209.77,209.64,7.9]
[1756893754694,13.2153652,209.75,209.64,7.9]
[1756893754996,13.2153652,209.73,209.58,7.9]
[1756893755290,13.2153652,209.69,209.58,7.9]
[1756893755486,7.86,209.7,209.55,7.9]
[1756893755887,13.2153652,209.7,209.55,7.9]
[1756893756190,7.86,209.7,209.55,7.9]
[1756893756394,7.86,209.66,209.5,7.9]
[1756893756589,7.86,209.62,209.5,7.9]
[1756893758292,7.86,209.62,209.43,7.9]
[1756893761091,126.82,209.62,209.47,7.9]
[1756893762696,4.24220055,209.6,209.47,7.9]
[1756893762895,7.49,209.59,209.47,7.9]
[1756893765895,7.49,209.59,209.38,4.24220055]
[1756893766094,7.49,209.55,209.39,7.26]
[1756893766393,7.49,209.53,209.39,7.26]
[1756893767799,4.24220055,209.52,209.39,7.26]
[1756893768003,7.49,209.51,209.39,7.26]
[1756893770503,7.49,209.51,209.3,353.8]
[1756893770708,7.49,209.47,209.31,7.26]
[1756893770904,7.49,209.45,209.31,7.26]
[1756893771303,44.2,209.44,209.31,7.26]
[1756893771499,7.49,209.45,209.31,7.26]
[1756893771701,73.66,209.44,209.31,7.26]
[1756893772197,7.49,209.45,209.31,7.26]
[1756893775411,7.49,209.45,209.3,324.94220055]
[1756893775412,1.7519669,209.45,209.39,1.7519669]
[1756893775708,9.2419669,209.49,209.41,1.7519669]
[1756893777003,7.49,209.46,209.35,7.26]
[1756893777207,1.7519669,209.45,209.38,1.7519669]
[1756893777400,1.7519669,209.48,209.41,7.26]
[1756893779105,7.49,209.47,209.41,7.26]
[1756893779411,7.49,209.45,209.37,9.0119669]
[1756893780408,7.49,209.45,209.39,1.7519669]
[1756893780609,7.49,209.5,209.41,1.7519669]
[1756893780809,1.7519669,209.49,209.41,1.7519669]
[1756893781008,1.7519669,209.47,209.4,7.26]
[1756893782409,1.7519669,209.48,209.4,7.26]
[1756893783407,320.8,209.52,209.45,1.7519669]
[1756893784210,1.7519669,209.55,209.48,7.26]
[1756893784611,1.7519669,209.55,209.49,1.7519669]
[1756893784808,1.7519669,209.57,209.49,1.7519669]
[1756893785110,118.61,209.58,209.51,1.7519669]
[1756893785713,120.3619669,209.58,209.51,1.7519669]
[1756893786314,1.7519669,209.6,209.53,1.7519669]
[1756893786514,1.7519669,209.6,209.54,7.26]
[1756893786814,128.0819669,209.62,209.54,7.26]
[1756893787214,118.84,209.62,209.55,1.7519669]
[1756893787404,322.6919669,209.64,209.43,66.839]
[1756893787405,320.94,209.64,209.58,7.26]
[1756893787612,7.49,209.65,209.58,7.26]
[1756893790412,7.49,209.65,209.45,7.26]
[1756893790617,7.49,209.65,209.49,4.25010101]
[1756893790814,7.49,209.65,209.5,7.26]
[1756893792116,7.62,209.62,209.5,7.26]
[1756893792915,7.62,209.62,209.45,20.83010101]
[1756893792916,7.62,209.58,209.45,7.58]
[1756893793116,27.54,209.58,209.45,7.58]
[1756893794915,27.54,209.58,209.41,7.58]
[1756893795117,7.62,209.54,209.41,7.58]
[1756893797011,4.25010101,209.51,209.41,7.58]
[1756893797221,43.6,209.5,209.36,7.58]
[1756893799224,7.62,209.5,209.36,7.58]
[1756893801122,11.87010101,209.5,209.36,7.58]
[1756893801825,7.62,209.5,209.36,7.58]
[1756893805128,11.87010101,209.5,209.36,7.58]
[1756893805528,14.40032552,209.5,209.36,7.58]
[1756893807824,28.72032552,209.5,209.36,7.58]
[1756893808724,7.62,209.48,209.36,7.58]
[1756893809432,7.62,209.48,209.36,10.31704781]
[1756893809629,2.73704781,209.52,209.39,2.73704781]
[1756893809835,85.89479635,209.54,209.4,7.58]
[1756893809836,10.35704781,209.53,209.4,7.58]
[1756893811430,7.62,209.53,209.4,7.58]
[1756893814339,7.62,209.53,209.33,7.58]
[1756893814546,12.9753652,209.53,209.33,7.58]
[1756893814845,27.2953652,209.53,209.33,7.58]
[1756893815048,7.62,209.51,209.33,7.58]
[1756893815742,21.94,209.51,209.33,7.58]
[1756893816236,27.2953652,209.51,209.33,7.58]
[1756893819552,6.77474171,209.49,209.33,7.58]
[1756893819743,7.62,209.48,209.33,7.58]
[1756893821951,21.94,209.48,209.33,7.58]
[1756893823051,21.94,209.48,209.3,7.77]
[1756893823052,7.97,209.47,209.3,7.77]
[1756893823253,7.97,209.45,209.3,7.77]
[1756893824149,7.97,209.43,209.3,7.77]
[1756893826154,7.97,209.41,209.2,7.77]
[1756893827555,6.77474171,209.39,209.2,7.77]
[1756893827757,126.85,209.38,209.2,7.77]
[1756893829157,7.97,209.38,209.2,7.77]
[1756893829357,7.97,209.36,209.2,7.77]
[1756893829556,7.97,209.34,209.2,7.77]
[1756893832656,52.72,209.33,209.2,7.77]
[1756893832853,7.97,209.34,209.2,7.77]
[1756893833058,68.14,209.33,209.2,7.77]
[1756893833259,7.97,209.34,209.2,7.77]
[1756893833458,2.74157001,209.32,209.2,7.77]
[1756893833652,7.97,209.34,209.2,7.77]
[1756893833858,7.97,209.38,209.25,7.77]
[1756893834155,10.71157001,209.38,209.25,7.77]
[1756893840266,10.71157001,209.38,209.26,7.77]
[1756893840559,10.71157001,209.38,209.29,7.77]
[1756893840560,7.97,209.38,209.29,7.77]
[1756893843165,31.84,209.4,209.21,7.77]
[1756893843166,7.97,209.39,209.21,7.77]
[1756893844274,7.97,209.39,209.22,7.77]
[1756893844466,321.04,209.45,209.22,7.77]
[1756893844467,7.97,209.44,209.25,7.77]
[1756893844673,37.95,209.44,209.28,7.77]
[1756893846361,7.97,209.44,209.28,7.77]
[1756893846670,126.87,209.44,209.28,7.77]
[1756893846873,126.87,209.44,209.28,12.0698]
[1756893847072,7.97,209.44,209.26,105.8]
[1756893847273,7.97,209.44,209.27,7.77]
[1756893848771,7.97,209.44,209.3,7.77]
[1756893849674,321.04,209.45,209.31,7.77]
[1756893850573,321.04,209.45,209.32,4.299]
[1756893850780,321.04,209.45,209.33,7.77]
[1756893851378,321.04,209.45,209.33,12.0688]
[1756893851574,7.97,209.47,209.34,7.81]
[1756893851782,7.85,209.52,209.36,7.81]
[1756893852072,126.73,209.52,209.36,14.59193384]
[1756893852277,126.73,209.52,209.39,7.81]
[1756893852669,7.85,209.52,209.39,7.81]
[1756893858584,22.17,209.51,209.34,7.81]
[1756893858774,7.85,209.48,209.34,7.81]
[1756893858982,7.85,209.46,209.3,7.81]
[1756893861388,28.95193384,209.46,209.3,7.81]
[1756893862988,34.30729904,209.46,209.3,7.81]
[1756893863187,19.98729904,209.46,209.3,7.81]
[1756893863388,14.63193384,209.46,209.3,7.81]
[1756893863786,19.98729904,209.46,209.3,7.81]
[1756893863990,7.85,209.44,209.3,7.81]
[1756893865393,7.85,209.4,209.22,7.81]
[1756893865692,7.85,209.34,209.22,7.81]
[1756893866094,7.85,209.39,209.22,7.81]
[1756893866292,18.24,209.38,209.22,7.81]
[1756893866492,18.24,209.38,209.22,12.07473575]
[1756893866695,7.85,209.39,209.23,7.81]
[1756893866896,30.99,209.39,209.23,7.81]
[1756893868792,30.99,209.39,209.23,4.3009]
[1756893868999,30.99,209.39,209.24,7.81]
[1756893871901,45.31,209.39,209.24,7.81]
[1756893873093,4.26473575,209.36,209.24,7.81]
[1756893873296,7.85,209.35,209.24,7.81]
[1756893878606,7.85,209.39,209.24,7.81]
[1756893881407,7.85,209.39,209.29,1.7534078]
[1756893881408,1.7534078,209.36,209.29,1.7534078]
[1756893882306,1.7534078,209.34,209.25,1.7534078]
[1756893882609,1.7534078,209.32,209.25,1.7534078]
[1756893883005,1.7534078,209.32,209.24,7.4]
[1756893883710,1.7534078,209.32,209.25,1.7534078]
[1756893883911,7.76,209.33,209.25,1.7534078]
[1756893884107,7.76,209.33,209.27,9.1534078]
[1756893884912,1.7534078,209.34,209.27,9.1534078]
[1756893885112,1.7534078,209.36,209.27,9.1534078]
[1756893887003,1.7534078,209.35,209.27,9.1534078]
[1756893887409,9.5134078,209.37,209.3,7.4]
[1756893887804,7.76,209.41,209.31,1.7534078]
[1756893888011,7.76,209.45,209.35,1.7534078]
[1756893888307,73.39522665,209.44,209.35,1.7534078]
[1756893888512,73.39522665,209.44,209.37,9.1534078]
[1756893888712,71.64181885,209.44,209.37,9.1534078]
[1756893888915,71.64181885,209.44,209.4,7.4]
[1756893889116,7.76,209.45,209.4,7.4]
[1756893890816,1.7534078,209.46,209.39,9.1534078]
[1756893891522,107.78,209.47,209.39,9.1534078]
[1756893892917,9.5134078,209.46,209.39,9.1534078]
[1756893893223,1.7534078,209.41,209.33,1.7534078]
[1756893894128,9.5134078,209.43,209.35,1.7534078]
[1756893894718,9.5134078,209.43,209.32,7.4]
[1756893895018,1.7534078,209.41,209.33,1.7534078]
[1756893896924,1.7534078,209.41,209.34,1.7534078]
[1756893897118,7.76,209.4,209.34,1.7534078]
[1756893897514,7.76,209.4,209.32,7.4]
[1756893897715,7.76,209.4,209.33,1.7534078]
[1756893897920,1.7534078,209.39,209.27,7.4]
[1756893898123,1.7534078,209.37,209.29,1.7534078]
[1756893898524,1.7534078,209.39,209.31,1.7534078]
[1756893900928,1.7534078,209.37,209.3,7.4]
[1756893903031,7.76,209.36,209.29,1.7534078]
[1756893903628,9.5134078,209.36,209.29,1.7534078]
[1756893904119,9.5134078,209.36,209.27,1.7534078]
[1756893904626,1.7534078,209.35,209.27,1.7534078]
[1756893905221,1.7534078,209.33,209.26,7.4]
[1756893905527,7.76,209.32,209.24,1.7534078]
[1756893906127,1.7534078,209.31,209.24,1.7534078]
[1756893906631,1.7534078,209.31,209.23,9.1534078]
[1756893906931,9.5134078,209.29,209.23,7.4]
[1756893907522,9.5134078,209.29,209.2,1.7534078]
[1756893909829,1.7534078,209.27,209.2,1.7534078]
[1756893910228,9.5134078,209.35,209.26,1.7534078]
[1756893910430,9.5134078,209.35,209.3,1.7534078]
[1756893910431,7.76,209.35,209.3,1.7534078]
[1756893910628,7.76,209.35,209.31,7.4]
[1756893910834,1.7534078,209.37,209.3,1.7534078]
[1756893911029,1.7534078,209.37,209.28,1.7534078]
[1756893911030,7.76,209.36,209.28,1.7534078]
[1756893911228,1.7534078,209.33,209.26,7.4]
[1756893911926,1.7534078,209.33,209.27,1.7534078]
[1756893912125,1.7534078,209.33,209.26,9.1534078]
[1756893912931,7.76,209.34,209.26,9.1534078]
[1756893914633,1.7534078,209.37,209.3,1.7534078]
[1756893915131,1.7534078,209.37,209.29,7.96]
[1756893916026,7.26,209.38,209.29,7.96]
[1756893916229,9.0134078,209.38,209.3,1.7534078]
[1756893917427,1.7534078,209.36,209.29,7.96]
[1756893918329,7.26,209.38,209.3,1.7534078]
[1756893918330,9.0134078,209.38,209.3,1.7534078]
[1756893918928,7.26,209.38,209.3,1.7534078]
[1756893919129,1.7534078,209.39,209.33,7.96]
[1756893920028,1.7534078,209.35,209.28,7.96]
[1756893920232,7.26,209.32,209.28,7.96]
[1756893921333,9.0134078,209.33,209.25,1.7534078]
[1756893925132,9.0134078,209.37,209.29,1.7534078]
[1756893926031,1.7534078,209.39,209.31,1.7534078]
[1756893927435,7.26,209.41,209.3,10.69873887]
[1756893927638,7.26,209.41,209.31,7.96]
[1756893930536,7.26,209.39,209.26,2.73873887]
[1756893931341,7.26,209.39,209.27,7.96]
[1756893932333,7.26,209.39,209.2,89.4736]
[1756893932334,7.26,209.39,209.3,7.96]
[1756893934137,7.26,209.36,209.25,7.96]
[1756893937235,2.73873887,209.34,209.25,7.96]
[1756893937433,7.26,209.33,209.25,7.96]
[1756893938543,30.62,209.33,209.21,7.96]
[1756893939846,7.26,209.33,209.23,2.73873887]
[1756893940042,0.83182943,209.35,209.24,7.96]
[1756893940247,7.26,209.34,209.24,7.96]
[1756893947749,9.99873887,209.34,209.24,7.96]
[1756893948042,2.73873887,209.31,209.2,7.39]
[1756893948244,7.84,209.3,209.2,7.39]
[1756893950849,8.09410407,209.31,209.18,104.50160002]
[1756893951054,7.84,209.24,209.13,3.98611114]
[1756893951252,2.73873887,209.22,209.11,7.39]
[1756893951450,7.84,209.21,209.11,7.39]
[1756893960662,7.84,209.21,209.13,7.39]
[1756893962658,2.73873887,209.22,209.05,7.39]
[1756893962858,7.84,209.18,209.07,7.39]
[1756893963264,7.84,209.12,209.02,7.39]
[1756893963868,2.73873887,209.16,209.06,2.73873887]
[1756893963869,7.84,209.16,209.06,2.73873887]
[1756893964166,7.84,209.18,209.07,7.39]
[1756893964562,66.66,209.18,209.07,7.39]
[1756893964761,7.84,209.18,209.07,10.12873887]
[1756893964966,7.84,209.18,209.08,7.39]
[1756893971575,7.84,209.18,209.08,10.12873887]
[1756893973976,7.84,209.18,209.09,7.37]
[1756893976074,7.59,209.25,209.12,7.37]
[1756893976378,7.59,209.23,209.12,7.37]
[1756893977975,7.59,209.21,209.09,7.37]
[1756893978371,2.73873887,209.19,209.09,7.37]
[1756893978673,7.59,209.18,209.05,7.37]
[1756893980878,2.73873887,209.19,209.05,10.10873887]
[1756893981779,7.59,209.18,209.05,10.10873887]
[1756893981978,2.73873887,209.19,209.05,10.10873887]
[1756893982277,7.59,209.18,209.05,7.37]
[1756893983073,2.73873887,209.16,209.05,7.37]
[1756893983378,7.59,209.15,209.05,7.37]
[1756893984881,7.59,209.15,209.06,7.37]
[1756893987582,1.75722682,209.14,209.06,9.12722682]
[1756893989083,7.59,209.13,209.06,9.12722682]
[1756893989279,1.75722682,209.14,208.98,15.41208375]
[1756893989280,1.75722682,209.12,208.99,7.37]
[1756893989479,7.59,209.11,209.01,1.75722682]
[1756893989680,1.75722682,209.08,209.01,1.75722682]
[1756893989885,1.75722682,209.08,208.99,7.37]
[1756893990085,1.75722682,209.08,209.0,1.75722682]
[1756893990288,1.75722682,209.06,208.95,7.37]
[1756893990588,7.59,209.07,209.0,1.75722682]
[1756893992685,120.77722682,209.11,209.03,7.37]
[1756893992879,7.59,209.1,209.03,7.37]
[1756893994184,7.59,209.1,208.96,4.3064]
[1756893994385,1.75722682,209.09,209.01,9.12722682]
[1756893996187,1.75722682,209.09,209.01,7.37]
[1756893996387,1.75722682,209.09,209.01,9.12722682]
[1756893998388,1.75722682,209.09,209.01,7.37]
[1756893998588,1.75722682,209.09,209.01,9.12722682]
[1756893998784,7.59,209.06,209.03,0.03401446]
[1756893998983,1.75722682,209.07,209.03,0.03401446]
[1756893999184,7.59,209.06,209.03,0.03401446]
[1756893999484,1.75722682,209.07,209.03,0.03401446]
[1756893999690,7.59,209.06,209.03,0.03401446]
[1756893999991,1.75722682,209.07,209.03,0.03401446]
[1756894000190,1.75722682,209.07,209.03,7.40401446]
[1756894000391,128.36722682,209.09,209.03,7.40401446]
[1756894002593,128.38722682,209.09,209.03,7.40401446]
[1756894003988,1.75722682,209.07,209.03,0.03401446]
[1756894004386,7.61,209.06,209.03,0.03401446]
[1756894005093,7.61,209.1,209.03,9.47124128]
[1756894005288,120.79722682,209.12,209.05,9.43722682]
[1756894005694,7.61,209.11,209.05,9.43722682]
[1756894005893,7.61,209.11,209.05,7.68]
[1756894006093,1.75722682,209.1,209.05,7.68]
[1756894006491,7.61,209.09,209.05,7.68]
[1756894007496,1.75722682,209.11,209.04,1.75722682]
[1756894007887,7.61,209.1,209.03,9.43722682]
[1756894008698,7.61,209.08,209.0,1.75722682]
[1756894010197,7.61,209.08,209.02,1.75722682]
[1756894010402,7.61,209.08,209.02,9.43722682]
[1756894011096,119.02,209.1,209.04,1.75722682]
[1756894012097,7.61,209.12,209.04,1.75722682]
[1756894012298,119.02,209.11,209.06,1.75722682]
[1756894012498,329.07,209.15,209.09,1.75722682]
[1756894012697,448.09,209.15,209.09,1.75722682]
[1756894014899,448.09,209.15,209.07,7.68]
[1756894015195,1.75722682,209.14,209.06,1.75722682]
[1756894015403,7.61,209.13,209.06,1.75722682]
[1756894015801,440.48,209.15,209.09,7.68]
[1756894016300,440.48,209.15,209.09,9.43722682]
[1756894016795,448.09,209.15,209.09,9.43722682]
[1756894016996,329.07,209.15,209.09,9.43722682]
[1756894017195,329.07,209.15,208.98,66.984]
[1756894017196,329.07,209.15,209.11,9.43722682]
[1756894017390,321.46,209.15,209.11,9.43722682]
[1756894017595,7.61,209.14,209.11,1.75722682]
[1756894017795,321.46,209.15,209.11,1.75722682]
[1756894018097,323.21722682,209.15,209.09,1.75722682]
[1756894018695,7.61,209.14,209.09,1.75722682]
[1756894019098,1.75722682,209.15,209.09,1.75722682]
[1756894019896,7.61,209.14,209.06,1.75722682]
[1756894020201,7.61,209.12,209.05,1.75722682]
[1756894020394,119.0,209.11,209.05,1.75722682]
[1756894020599,7.61,209.12,209.08,9.43722682]
[1756894020600,126.61,209.12,209.08,9.43722682]
[1756894020800,119.0,209.12,209.08,9.43722682]
[1756894020998,126.61,209.12,209.08,9.43722682]
[1756894021198,7.61,209.11,209.08,9.43722682]
[1756894021997,7.61,209.15,209.09,7.68]
[1756894022204,126.61,209.15,209.12,1.75722682]
[1756894022700,7.61,209.15,209.12,1.75722682]